bitfinex-derivatives/quotes_BTCF0:USTF0_20250924
["timestamp","ask_amount","ask_price","bid_price","bid_amount"]
[1758688331895,0.95166808,112130.0,112120.0,0.04254]
[1758688332099,1.02424048,112130.0,112120.0,0.48278363]
[1758688332601,1.02464048,112130.0,112120.0,0.40334]
[1758688332993,1.02464048,112130.0,112120.0,0.3608]
[1758688333199,1.32001233,112130.0,112120.0,0.3608]
[1758688333498,0.0895515,112130.0,112120.0,0.86690532]
[1758688333704,0.939463,112130.0,112120.0,0.80334]
[1758688334004,0.966643,112130.0,112120.0,0.80334]
[1758688334195,0.9769715,112130.0,112120.0,0.80334]
[1758688334597,1.27234335,112130.0,112120.0,0.37645]
[1758688334798,0.9769715,112130.0,112120.0,0.37645]
[1758688335302,0.9769715,112130.0,112120.0,0.40263]
[1758688335802,0.9496715,112130.0,112120.0,0.4821382]
[1758688336195,1.04773305,112130.0,112120.0,0.4821382]
[1758688336791,1.7478649,112130.0,112120.0,0.4407082]
[1758688336996,1.7478649,112130.0,112120.0,0.0004]
[1758688337197,0.1304895,112120.0,112110.0,0.3820021]
[1758688337498,0.42586135,112120.0,112110.0,0.3827021]
[1758688337698,0.42586135,112120.0,112110.0,0.3616]
[1758688337699,0.1304895,112120.0,112110.0,0.3616]
[1758688338198,0.1304895,112120.0,112110.0,0.3676]
[1758688338905,0.42586135,112120.0,112110.0,0.3676]
[1758688339106,0.42586135,112120.0,112110.0,0.3668]
[1758688339704,0.42586135,112120.0,112110.0,0.3672]
[1758688340405,0.1159395,112120.0,112110.0,0.40923]
[1758688340703,0.9760196,112120.0,112110.0,0.40923]
[1758688341004,0.83288155,112130.0,112110.0,1.19376935]
[1758688341314,0.1167,112140.0,112130.0,0.04211]
[1758688341497,0.97698,112140.0,112130.0,0.48259904]
[1758688341699,0.97618,112140.0,112130.0,0.40291]
[1758688341904,0.97646,112140.0,112130.0,0.40291]
[1758688342093,0.97606,112140.0,112130.0,0.40291]
[1758688342396,0.97646,112140.0,112130.0,0.40291]
[1758688342600,0.97606,112140.0,112130.0,0.40291]
[1758688342795,0.97646,112140.0,112130.0,0.40291]
[1758688343001,0.97656,112140.0,112130.0,0.40291]
[1758688343197,0.97656,112140.0,112130.0,0.48257508]
[1758688343706,0.02685,112140.0,112130.0,0.48257508]
[1758688344003,0.88119,112140.0,112130.0,0.48257508]
[1758688344202,0.0899393,112150.0,112130.0,0.48257508]
[1758688344203,0.0891393,112150.0,112130.0,0.40291]
[1758688344403,0.0918693,112150.0,112140.0,0.10582468]
[1758688344603,0.9418793,112150.0,112140.0,0.10582468]
[1758688344800,0.0821593,112150.0,112140.0,0.10582468]
[1758688345000,0.9419593,112150.0,112140.0,0.04211]
[1758688345200,0.0008,112150.0,112140.0,0.57171878]
[1758688345410,0.0008,112150.0,112140.0,0.8920537]
[1758688345602,0.96834183,112160.0,112150.0,0.01625]
[1758688345804,0.96914183,112160.0,112150.0,0.4824918]
[1758688346710,0.96913703,112160.0,112150.0,0.4824918]
[1758688347303,0.11957703,112160.0,112150.0,0.40291]
[1758688347603,0.97897703,112160.0,112150.0,0.40291]
[1758688348703,0.11764703,112160.0,112150.0,0.40291]
[1758688348914,0.97809703,112160.0,112150.0,0.80291]
[1758688349109,0.97536703,112160.0,112150.0,0.80291]
[1758688349406,0.97576703,112160.0,112150.0,0.80291]
[1758688349600,0.97493703,112160.0,112150.0,0.80291]
[1758688350313,0.97466703,112160.0,112150.0,0.80291]
[1758688350706,0.97452703,112160.0,112150.0,0.80291]
[1758688350902,0.97259703,112160.0,112150.0,0.8824918]
[1758688351110,0.97219703,112160.0,112150.0,0.8824918]
[1758688351307,0.97246703,112160.0,112150.0,0.8824918]
[1758688351707,0.02481923,112160.0,112150.0,1.26699935]
[1758688352017,0.6027919,112180.0,112170.0,0.04211]
[1758688352211,0.6027919,112180.0,112170.0,0.48227554]
[1758688352408,0.6031919,112180.0,112170.0,0.57139534]
[1758688352609,0.6031919,112180.0,112170.0,0.93219534]
[1758688353009,0.0004,112180.0,112170.0,1.33219534]
[1758688353211,0.9479095,112190.0,112180.0,0.04211]
[1758688353411,0.9487095,112190.0,112180.0,0.48216893]
[1758688354011,1.01913314,112190.0,112180.0,0.48216893]
[1758688354213,1.01833314,112190.0,112180.0,0.40291]
[1758688354415,0.9477095,112190.0,112180.0,0.40291]
[1758688354713,0.9703095,112190.0,112180.0,0.40291]
[1758688354918,1.0159179,112190.0,112180.0,0.40291]
[1758688355213,0.0682084,112190.0,112180.0,0.4920218]
[1758688355420,0.76432,112190.0,112180.0,1.18739365]
[1758688355606,0.76432,112190.0,112180.0,0.8920218]
[1758688355812,0.8530238,112190.0,112180.0,0.80291]
[1758688356122,0.89826341,112190.0,112180.0,0.8920217]
[1758688356418,0.89290341,112190.0,112180.0,0.8920217]
[1758688356923,0.7928038,112190.0,112180.0,0.8920217]
[1758688357120,0.0004,112190.0,112180.0,0.8920217]
[1758688357309,0.1082258,112200.0,112180.0,0.95531034]
[1758688357514,0.6052058,112200.0,112190.0,0.40291]
[1758688357715,0.5724158,112200.0,112190.0,0.40291]
[1758688357916,0.86818765,112200.0,112190.0,0.40291]
[1758688358323,0.9853007,112200.0,112190.0,0.40291]
[1758688358823,0.68992885,112200.0,112190.0,0.40291]
[1758688360417,0.18788885,112200.0,112190.0,0.40291]
[1758688361424,0.18788885,112200.0,112190.0,0.37705]
[1758688362223,0.4832607,112200.0,112190.0,0.40291]
[1758688362720,0.0910338,112190.0,112180.0,0.37715]
[1758688363029,1.24152565,112190.0,112180.0,0.3609]
[1758688363218,0.9461538,112190.0,112180.0,0.3609]
[1758688363420,1.24152565,112190.0,112180.0,0.3609]
[1758688363726,1.24152565,112190.0,112180.0,0.37715]
[1758688363912,1.24152565,112190.0,112180.0,0.38915]
[1758688364113,2.00232565,112190.0,112180.0,0.0121]
[1758688364525,0.0891197,112170.0,112160.0,0.37705]
[1758688364716,0.9458097,112170.0,112160.0,0.37705]
[1758688364921,0.9458097,112170.0,112160.0,0.40291]
[1758688365125,0.9458097,112170.0,112160.0,0.46619864]
[1758688365627,1.24118155,112170.0,112160.0,0.37705]
[1758688365828,1.64118155,112170.0,112160.0,0.37705]
[1758688366132,0.9458097,112170.0,112160.0,0.40291]
[1758688366321,0.9458097,112170.0,112160.0,0.40391]
[1758688367025,1.3458097,112170.0,112160.0,0.37805]
[1758688367233,1.64118155,112170.0,112160.0,0.37805]
[1758688368427,1.64118155,112170.0,112160.0,0.40391]
[1758688368627,0.9458097,112170.0,112160.0,0.40391]
[1758688368831,1.24118155,112170.0,112160.0,0.37805]
[1758688369515,0.9458097,112170.0,112160.0,0.37805]
[1758688369829,1.24118155,112170.0,112160.0,0.46875864]
[1758688370427,0.9458097,112170.0,112160.0,0.46875864]
[1758688371337,1.24118155,112170.0,112160.0,0.46875864]
[1758688373041,0.85326,112180.0,112170.0,0.0429]
[1758688373329,0.8538,112180.0,112170.0,0.10618864]
[1758688373831,0.8538,112180.0,112170.0,0.55610824]
[1758688374133,0.51474715,112200.0,112190.0,0.0429]
[1758688374332,1.37410715,112200.0,112190.0,0.4037]
[1758688374634,0.2193753,112200.0,112190.0,0.46712674]
[1758688374934,1.0784553,112200.0,112190.0,0.46712674]
[1758688375133,1.06005235,112200.0,112190.0,0.46712674]
[1758688375830,1.3554242,112200.0,112190.0,0.46712674]
[1758688376031,1.7554242,112200.0,112190.0,0.43022674]
[1758688376332,2.1162242,112200.0,112190.0,0.06942674]
[1758688376535,2.1162242,112200.0,112190.0,0.006]
[1758688377233,0.0016,112200.0,112190.0,1.19417565]
[1758688377439,0.94744,112220.0,112210.0,0.0429]
[1758688377639,0.85836,112220.0,112210.0,0.4671375]
[1758688377831,0.85876,112220.0,112210.0,0.4671375]
[1758688378137,0.0004,112220.0,112210.0,0.5562255]
[1758688378335,0.9477131,112230.0,112210.0,1.253588]
[1758688378536,0.8489131,112230.0,112220.0,0.46710861]
[1758688378732,0.04512275,112230.0,112220.0,0.46710861]
[1758688378932,0.13419485,112230.0,112220.0,0.46710861]
[1758688379439,0.13379485,112230.0,112220.0,0.4037]
[1758688379640,0.13519485,112230.0,112220.0,0.4037]
[1758688379939,0.13519485,112230.0,112220.0,0.46710861]
[1758688380243,0.0014,112230.0,112220.0,1.25156046]
[1758688380428,0.06464343,112250.0,112240.0,0.0429]
[1758688380739,0.59420343,112250.0,112240.0,0.46707784]
[1758688381338,0.52956,112250.0,112240.0,0.7645]
[1758688381638,0.50815,112250.0,112240.0,0.91694194]
[1758688381936,0.0004,112250.0,112240.0,0.91694194]
[1758688382136,0.0894562,112250.0,112240.0,0.82787784]
[1758688382837,0.0894562,112250.0,112240.0,0.82887784]
[1758688384142,0.0894562,112250.0,112240.0,0.4047]
[1758688384334,0.38492805,112250.0,112240.0,0.37728]
[1758688384538,0.78492805,112250.0,112240.0,0.01648]
[1758688385343,0.78492805,112250.0,112240.0,0.001]
[1758688385744,0.78492805,112250.0,112240.0,0.01648]
[1758688386841,0.38492805,112250.0,112240.0,0.0439]
[1758688387041,0.9487562,112250.0,112240.0,0.4047]
[1758688387547,1.24372805,112250.0,112240.0,0.4047]
[1758688387741,1.24412805,112250.0,112240.0,0.37728]
[1758688388133,1.24412805,112250.0,112240.0,0.4047]
[1758688388331,0.0895562,112250.0,112240.0,0.4047]
[1758688388535,0.8485562,112250.0,112240.0,0.4047]
[1758688388741,0.9376124,112250.0,112240.0,0.4047]
[1758688389240,0.9380124,112250.0,112240.0,0.4097]
[1758688389439,1.23338425,112250.0,112240.0,0.4097]
[1758688390349,1.23338425,112250.0,112240.0,0.0489]
[1758688390547,1.63338425,112250.0,112240.0,0.02148]
[1758688391147,1.63338425,112250.0,112240.0,0.0489]
[1758688391347,1.23338425,112250.0,112240.0,0.0489]
[1758688391548,0.9380124,112250.0,112240.0,0.4097]
[1758688391739,0.9488962,112250.0,112240.0,0.4097]
[1758688392048,0.9484962,112250.0,112240.0,0.4097]
[1758688392242,1.24426805,112250.0,112240.0,0.4097]
[1758688392645,0.9488962,112250.0,112240.0,0.4097]
[1758688394350,0.8499762,112250.0,112240.0,0.4097]
[1758688394647,0.8514862,112250.0,112240.0,0.4097]
[1758688395041,0.9518162,112250.0,112240.0,0.4097]
[1758688395239,0.86276,112250.0,112240.0,0.4987641]
[1758688395548,0.86316,112250.0,112240.0,0.4987641]
[1758688395745,0.8801462,112250.0,112240.0,0.4097]
[1758688395938,0.8801762,112250.0,112240.0,0.4097]
[1758688396548,0.8537262,112250.0,112240.0,0.4097]
[1758688396941,0.8537262,112250.0,112240.0,0.38228]
[1758688397136,0.35448096,112250.0,112240.0,0.41074]
[1758688397336,1.21712096,112250.0,112240.0,0.41074]
[1758688398150,0.9536062,112250.0,112240.0,0.02148]
[1758688398652,0.0909662,112250.0,112240.0,0.02148]
[1758688398841,1.21648096,112250.0,112240.0,0.02148]
[1758688399042,1.21648096,112250.0,112240.0,0.048]
[1758688399244,0.9529662,112250.0,112240.0,0.048]
[1758688399444,1.3529662,112250.0,112240.0,0.02148]
[1758688399749,1.97728096,112250.0,112240.0,0.006]
[1758688401147,1.57728096,112250.0,112240.0,0.006]
[1758688401448,1.57744096,112250.0,112240.0,0.02235]
[1758688401853,1.57744096,112250.0,112240.0,0.04887]
[1758688402053,0.71528096,112250.0,112240.0,0.04887]
[1758688402251,1.57728096,112250.0,112240.0,0.04887]
[1758688402758,1.57728096,112250.0,112240.0,0.02235]
[1758688404557,1.57728096,112250.0,112240.0,0.04887]
[1758688405058,1.3137662,112250.0,112240.0,0.04887]
[1758688405458,1.57728096,112250.0,112240.0,0.02235]
[1758688405645,1.57728096,112250.0,112240.0,0.006]
[1758688406651,1.57728096,112250.0,112240.0,0.02235]
[1758688406847,0.71528096,112250.0,112240.0,0.02235]
[1758688407051,1.57664096,112250.0,112240.0,0.04887]
[1758688407248,1.57674096,112250.0,112240.0,0.04887]
[1758688407960,1.20838096,112250.0,112240.0,0.40967]
[1758688408163,1.20569096,112250.0,112240.0,0.04887]
[1758688408758,1.20291096,112250.0,112240.0,0.04887]
[1758688409259,1.56371096,112250.0,112240.0,0.02235]
[1758688409862,1.96371096,112250.0,112240.0,0.006]
[1758688410362,1.96371096,112250.0,112240.0,0.06937784]
[1758688410564,1.96371096,112250.0,112240.0,0.006]
[1758688413561,1.96371096,112250.0,112240.0,1e-07]
[1758688413751,0.0890643,112240.0,112230.0,0.06337784]
[1758688413958,0.71644906,112240.0,112230.0,0.06219349]
[1758688414158,0.0921502,112220.0,112210.0,0.45557688]
[1758688414458,0.0921502,112220.0,112210.0,0.48209688]
[1758688414459,0.35566496,112220.0,112210.0,0.48209688]
[1758688414664,0.00307,112220.0,112210.0,0.4028]
[1758688414960,0.9384301,112220.0,112210.0,0.8028]
[1758688415862,0.9388301,112220.0,112210.0,0.8028]
[1758688417161,0.9388301,112220.0,112210.0,0.8078]
[1758688417562,0.9388301,112220.0,112210.0,0.88709688]
[1758688418761,0.9399901,112220.0,112210.0,0.88709688]
[1758688418969,0.9489204,112220.0,112210.0,0.88709688]
[1758688419169,0.85984,112220.0,112210.0,0.97618518]
[1758688419357,0.85984,112220.0,112210.0,0.88709688]
[1758688419558,0.9489204,112220.0,112210.0,0.48709688]
[1758688420762,0.9489203,112220.0,112210.0,0.4968882]
[1758688420962,0.9482803,112220.0,112210.0,0.4968882]
[1758688421464,0.9482803,112220.0,112210.0,0.4078]
[1758688421679,0.9482803,112220.0,112210.0,0.4968882]
[1758688422170,0.0894803,112220.0,112210.0,0.4968882]
[1758688422674,0.9472803,112220.0,112210.0,0.4968882]
[1758688423873,0.9471203,112220.0,112210.0,0.4968882]
[1758688424272,0.0894803,112220.0,112210.0,0.4968882]
[1758688424472,0.9463603,112220.0,112210.0,0.4968882]
[1758688424967,0.85728,112220.0,112210.0,0.4968882]
[1758688425171,0.9463603,112220.0,112210.0,0.4968882]
[1758688425369,0.0894803,112220.0,112210.0,0.57618508]
[1758688425573,0.9463603,112220.0,112210.0,0.57618508]
[1758688425774,0.9463603,112220.0,112210.0,0.48709688]
[1758688427274,0.9463603,112220.0,112210.0,0.4078]
[1758688428468,0.9463603,112220.0,112210.0,0.60899795]
[1758688429377,0.9450803,112220.0,112210.0,0.60899795]
[1758688429670,0.9450803,112220.0,112210.0,0.51990955]
[1758688430469,1.20859506,112220.0,112210.0,0.49338955]
[1758688431675,1.20859506,112220.0,112210.0,0.38128]
[1758688431973,1.20859506,112220.0,112210.0,0.4087]
[1758688432179,0.9450803,112220.0,112210.0,0.4087]
[1758688433277,0.9443203,112220.0,112210.0,0.4087]
[1758688433476,0.9444203,112220.0,112210.0,0.4087]
[1758688434379,0.9442603,112220.0,112210.0,0.4977886]
[1758688434575,0.9438203,112220.0,112210.0,0.60989815]
[1758688435275,0.0005,112220.0,112210.0,0.57727126]
[1758688435470,0.06236242,112230.0,112220.0,0.1320107]
[1758688435672,0.71338546,112240.0,112230.0,0.01551]
[1758688435871,1.56838546,112240.0,112230.0,0.07908999]
[1758688436067,0.4498707,112240.0,112230.0,0.10650999]
[1758688436272,0.9435107,112240.0,112230.0,0.12241266]
[1758688436475,0.9435107,112240.0,112230.0,0.04293]
[1758688436674,1.20702546,112240.0,112230.0,0.04293]
[1758688436872,1.27656284,112240.0,112230.0,0.04293]
[1758688437179,0.0890727,112230.0,112220.0,0.48841955]
[1758688437474,0.35258746,112230.0,112220.0,0.49241955]
[1758688437875,0.35258746,112230.0,112220.0,0.48841955]
[1758688438180,1.20702746,112230.0,112220.0,0.48841955]
[1758688438381,0.9435127,112230.0,112220.0,0.51583955]
[1758688438578,1.19515272,112230.0,112220.0,0.51983955]
[1758688438771,0.34071272,112230.0,112220.0,0.51983955]
[1758688439076,1.19503272,112230.0,112220.0,0.51983955]
[1758688439473,1.19503272,112230.0,112220.0,0.13161955]
[1758688439674,1.19503272,112230.0,112220.0,0.11610955]
[1758688440272,0.34071272,112230.0,112220.0,0.13161955]
[1758688440482,1.19499272,112230.0,112220.0,0.13161955]
[1758688440684,1.10151272,112230.0,112220.0,0.11610955]
[1758688440873,1.95607272,112230.0,112220.0,0.11610955]
[1758688441178,1.95607272,112230.0,112220.0,0.19566752]
[1758688441378,1.95607272,112230.0,112220.0,0.08355797]
[1758688442381,1.7044327,112230.0,112220.0,0.08355797]
[1758688442572,1.7044327,112230.0,112220.0,0.07361797]
[1758688442573,1.95607272,112230.0,112220.0,0.07361797]
[1758688442774,0.0890807,112220.0,112210.0,0.11048929]
[1758688443083,0.0890886,112210.0,112200.0,0.02112168]
[1758688443279,1.19528862,112210.0,112200.0,0.03663168]
[1758688443468,1.19528862,112210.0,112200.0,0.01551]
[1758688443973,0.0890966,112200.0,112190.0,0.37631]
[1758688444173,0.34073662,112200.0,112190.0,0.37631]
[1758688444377,0.34073662,112200.0,112190.0,0.40373]
[1758688444782,0.4020329,112200.0,112190.0,0.40373]
[1758688444982,0.43889112,112200.0,112190.0,0.40373]
[1758688445284,0.43889112,112200.0,112190.0,0.41873]
[1758688446476,0.43889112,112200.0,112190.0,0.39131]
[1758688446676,1.45133114,112200.0,112190.0,0.015]
[1758688447073,0.43889112,112200.0,112190.0,0.39131]
[1758688447279,1.29333112,112200.0,112190.0,0.41873]
[1758688447880,1.69373112,112200.0,112190.0,0.39131]
[1758688448183,2.05453112,112200.0,112190.0,0.015]
[1758688448382,2.30617114,112200.0,112190.0,0.015]
[1758688448884,0.0891124,112180.0,112170.0,0.0001]
[1758688449084,0.0891204,112170.0,112160.0,0.39735598]
[1758688449277,0.0891204,112170.0,112160.0,0.39725598]
[1758688449278,0.34076042,112170.0,112160.0,0.39725598]
[1758688449784,0.34076042,112170.0,112160.0,0.37631]
[1758688450172,1.3040324,112180.0,112160.0,0.37631]
[1758688450173,1.3040378,112180.0,112160.0,0.37631]
[1758688450376,0.0891124,112180.0,112170.0,0.04293]
[1758688450577,1.19587242,112180.0,112170.0,0.04293]
[1758688451179,1.19627242,112180.0,112170.0,0.04293]
[1758688451886,1.21027242,112180.0,112170.0,0.04293]
[1758688452188,0.1035124,112180.0,112170.0,0.4672072]
[1758688452485,0.9371024,112180.0,112170.0,0.4672072]
[1758688452684,1.18874242,112180.0,112170.0,0.40373]
[1758688452889,1.18850242,112180.0,112170.0,0.40373]
[1758688453283,0.48675454,112200.0,112190.0,0.01551]
[1758688453483,0.44862323,112200.0,112190.0,0.04293]
[1758688453787,0.44862323,112200.0,112190.0,0.46715398]
[1758688453788,1.30294323,112200.0,112190.0,0.46715398]
[1758688454177,0.19738321,112200.0,112190.0,0.46715398]
[1758688454377,1.30276323,112200.0,112190.0,0.46715398]
[1758688454673,1.07012321,112200.0,112190.0,0.46715398]
[1758688455073,0.98142671,112200.0,112190.0,0.4928344]
[1758688455278,0.98142671,112200.0,112190.0,0.40373]
[1758688455476,1.07052321,112200.0,112190.0,0.48307651]
[1758688455888,1.06984321,112200.0,112190.0,0.88307651]
[1758688456275,1.07024321,112200.0,112190.0,0.88307651]
[1758688456479,1.07024321,112200.0,112190.0,0.80373]
[1758688457380,0.98114671,112200.0,112190.0,0.80373]
[1758688457587,1.06984311,112200.0,112190.0,0.80373]
[1758688457788,1.07024311,112200.0,112190.0,0.80373]
[1758688458089,1.07024311,112200.0,112190.0,0.8928344]
[1758688458288,1.07024311,112200.0,112190.0,0.97218091]
[1758688458491,1.07024311,112200.0,112190.0,0.88307651]
[1758688458987,1.07024311,112200.0,112190.0,0.80373]
[1758688459186,1.07024311,112200.0,112190.0,0.88307651]
[1758688459392,1.36525634,112200.0,112190.0,0.80373]
[1758688459594,1.07024311,112200.0,112190.0,0.80373]
[1758688459784,1.36525634,112200.0,112190.0,0.88307651]
[1758688460594,1.07024311,112200.0,112190.0,0.88307651]
[1758688461685,1.36525634,112200.0,112190.0,0.45565651]
[1758688461986,1.36525634,112200.0,112190.0,0.48364651]
[1758688462390,1.36525634,112200.0,112190.0,0.45565651]
[1758688462699,1.36525634,112200.0,112190.0,0.4043]
[1758688462890,1.07024311,112200.0,112190.0,0.48364651]
[1758688463392,1.36525634,112200.0,112190.0,0.48364651]
[1758688463990,1.06984311,112200.0,112190.0,0.48364651]
[1758688464188,1.07024311,112200.0,112190.0,0.48364651]
[1758688464494,1.36525634,112200.0,112190.0,0.48364651]
[1758688466392,1.36525634,112200.0,112190.0,0.45565651]
[1758688466792,1.36525634,112200.0,112190.0,0.37631]
[1758688467293,1.36525634,112200.0,112190.0,0.45565651]
[1758688468898,1.36525634,112200.0,112190.0,0.44014651]
[1758688469194,0.0891043,112190.0,112180.0,0.07944651]
[1758688469394,0.0891043,112190.0,112180.0,0.07934651]
[1758688469395,0.38421753,112190.0,112180.0,0.07934651]
[1758688469696,0.0891123,112180.0,112170.0,0.51563701]
[1758688469892,0.9414523,112180.0,112170.0,0.51543701]
[1758688470192,0.9414523,112180.0,112170.0,0.4043]
[1758688470394,0.9414523,112180.0,112170.0,0.4934202]
[1758688471296,0.9414523,112180.0,112170.0,0.4974202]
[1758688471689,0.85234,112180.0,112170.0,0.4974202]
[1758688471889,0.85234,112180.0,112170.0,0.51813618]
[1758688472097,0.9414523,112180.0,112170.0,0.51813618]
[1758688472495,0.9414523,112180.0,112170.0,0.62927319]
[1758688472699,0.9414523,112180.0,112170.0,0.70871962]
[1758688472893,0.9414523,112180.0,112170.0,0.59758261]
[1758688473193,0.0892123,112180.0,112170.0,0.99758261]
[1758688473400,0.8705723,112180.0,112170.0,0.99758261]
[1758688474694,1.15385332,112180.0,112170.0,1.28086363]
[1758688475095,1.15385332,112180.0,112170.0,0.79174343]
[1758688475299,1.15385332,112180.0,112170.0,0.88086363]
[1758688475897,0.0001,112180.0,112170.0,1.28086363]
[1758688476199,0.0001,112180.0,112170.0,1.48469822]
[1758688476502,0.0001,112180.0,112170.0,1.2014172]
[1758688476699,0.0005,112180.0,112170.0,1.2014172]
[1758688477207,0.0005,112180.0,112170.0,1.48469822]
[1758688477498,7.907e-05,112180.0,112170.0,2.33693822]
[1758688477697,0.85224,112190.0,112170.0,2.0536572]
[1758688477889,1.33330783,112200.0,112190.0,0.04486]
[1758688478093,1.23625783,112200.0,112190.0,0.48507614]
[1758688478401,0.95337681,112200.0,112190.0,0.40566]
[1758688478595,0.95337681,112200.0,112190.0,0.77804532]
[1758688478596,0.01203671,112200.0,112190.0,0.77804532]
[1758688478801,1.14751773,112200.0,112190.0,0.77804532]
[1758688479102,1.14711773,112200.0,112190.0,0.88923446]
[1758688479296,1.14751773,112200.0,112190.0,0.60595344]
[1758688479496,1.23661413,112200.0,112190.0,0.77804532]
[1758688480101,1.23661413,112200.0,112190.0,0.4947643]
[1758688480303,1.24461413,112200.0,112190.0,0.77804532]
[1758688480807,1.25661413,112200.0,112190.0,0.77904532]
[1758688481301,1.16751773,112200.0,112190.0,0.77904532]
[1758688481606,1.25661413,112200.0,112190.0,0.77904532]
[1758688482206,1.32902732,112200.0,112190.0,0.77904532]
[1758688482709,1.23993092,112200.0,112190.0,0.77904532]
[1758688483005,1.32902732,112200.0,112190.0,0.77904532]
[1758688483405,1.32902732,112200.0,112190.0,0.4957643]
[1758688484298,1.32902732,112200.0,112190.0,0.77904532]
[1758688485205,1.32902732,112200.0,112190.0,0.4957643]
[1758688485410,1.32902732,112200.0,112190.0,0.51788522]
[1758688486507,1.32902732,112200.0,112190.0,0.60698942]
[1758688487100,1.32902732,112200.0,112190.0,0.89027044]
[1758688489411,0.88403671,112200.0,112190.0,1.29027044]
[1758688489705,0.39122639,112210.0,112200.0,0.1344863]
[1758688489706,1.24238639,112210.0,112200.0,0.1344863]
[1758688490006,1.26477588,112210.0,112200.0,0.4952863]
[1758688491007,1.27777588,112210.0,112200.0,0.4962863]
[1758688491213,1.29177588,112210.0,112200.0,0.4962863]
[1758688493008,1.29177588,112210.0,112200.0,0.57570819]
[1758688494014,1.29177588,112210.0,112200.0,0.4962863]
[1758688495710,1.29177588,112210.0,112200.0,0.57570009]
[1758688495909,1.29177588,112210.0,112200.0,0.4962863]
[1758688496110,1.29187588,112210.0,112200.0,0.4962863]
[1758688496914,1.29187588,112210.0,112200.0,0.57569808]
[1758688498109,1.29187588,112210.0,112200.0,0.57569858]
[1758688500230,1.29187588,112210.0,112200.0,0.4962868]
[1758688501130,1.00859486,112210.0,112200.0,0.4962868]
[1758688501328,1.29187588,112210.0,112200.0,0.4962868]
[1758688501532,1.00859486,112210.0,112200.0,0.89079304]
[1758688501835,1.29187588,112210.0,112200.0,0.89079304]
[1758688502022,1.29187588,112210.0,112200.0,0.60751202]
[1758688502225,1.29125588,112210.0,112200.0,0.89079304]
[1758688502620,1.28681588,112210.0,112200.0,0.60751202]
[1758688503221,1.28681588,112210.0,112200.0,0.51841522]
[1758688503427,1.28157588,112210.0,112200.0,0.51841522]
[1758688503834,1.28099588,112210.0,112200.0,0.51841522]
[1758688504230,1.9642769,112210.0,112200.0,0.11222522]
[1758688504436,1.86801153,112210.0,112200.0,0.19172129]
[1758688504632,1.58473051,112210.0,112200.0,0.19172129]
[1758688504933,0.0891047,112190.0,112180.0,0.11122522]
[1758688505134,1.51800102,112190.0,112170.0,0.60563195]
[1758688505325,0.39479372,112180.0,112170.0,0.42554598]
[1758688505525,0.39479372,112180.0,112170.0,0.51456658]
[1758688505721,0.39479372,112180.0,112170.0,0.42544598]
[1758688506130,0.39379372,112180.0,112170.0,0.42544598]
[1758688506533,0.39379372,112180.0,112170.0,0.06464598]
[1758688506932,0.39379372,112180.0,112170.0,0.13207354]
[1758688507139,1.07707474,112180.0,112170.0,0.13207354]
[1758688507334,1.07707474,112180.0,112170.0,0.02071598]
[1758688507634,0.1115206,112170.0,112140.0,0.60733086]
[1758688507825,0.30568102,112150.0,112140.0,0.71052591]
[1758688508030,0.37240582,112170.0,112160.0,0.04539]
[1758688508330,0.1035248,112170.0,112160.0,0.40619]
[1758688508531,0.38720582,112170.0,112160.0,0.68947102]
[1758688508737,1.17804582,112170.0,112160.0,0.40619]
[1758688509438,1.18704582,112170.0,112160.0,0.40719]
[1758688510239,0.9037648,112170.0,112160.0,0.40719]
[1758688510432,0.9644048,112170.0,112160.0,0.69047102]
[1758688510630,1.25268582,112170.0,112160.0,0.69047102]
[1758688511031,1.25268582,112170.0,112160.0,0.40719]
[1758688511432,0.9694048,112170.0,112160.0,0.40719]
[1758688511832,1.25268582,112170.0,112160.0,0.40719]
[1758688512234,1.60879155,112170.0,112160.0,0.37877]
[1758688512834,1.60879155,112170.0,112160.0,0.01797]
[1758688513033,2.00879155,112170.0,112160.0,0.37877]
[1758688513235,2.00879155,112170.0,112160.0,0.01797]
[1758688513236,2.36959155,112170.0,112160.0,0.01797]
[1758688513628,1.80302951,112170.0,112160.0,0.01797]
[1758688513834,2.36959155,112170.0,112160.0,0.01797]
[1758688514037,2.00879155,112170.0,112160.0,0.01797]
[1758688515938,0.19074951,112170.0,112160.0,0.40719]
[1758688516144,1.31819053,112170.0,112160.0,0.40719]
[1758688516345,1.31859053,112170.0,112160.0,0.40719]
[1758688516544,1.03490951,112170.0,112160.0,0.40719]
[1758688516851,1.03530951,112170.0,112160.0,0.40719]
[1758688517948,1.04210951,112170.0,112160.0,0.40719]
[1758688518248,1.29398494,112170.0,112160.0,0.40719]
[1758688518544,1.29390494,112170.0,112160.0,0.37877]
[1758688518944,1.65470494,112170.0,112160.0,0.001]
[1758688519246,2.05470494,112170.0,112160.0,0.08038052]
[1758688519440,2.05470494,112170.0,112160.0,0.001]
[1758688522046,2.07270435,112170.0,112160.0,0.001]
[1758688524342,0.82142435,112170.0,112160.0,0.01687]
[1758688524546,1.05956892,112170.0,112160.0,0.40452]
[1758688524748,1.31184435,112170.0,112160.0,0.40452]
[1758688525149,1.31144435,112170.0,112160.0,0.40452]
[1758688525650,1.31184435,112170.0,112160.0,0.40452]
[1758688526651,1.05996892,112170.0,112160.0,0.40452]
[1758688526950,1.31184435,112170.0,112160.0,0.40452]
[1758688527151,1.31180435,112170.0,112160.0,0.40452]
[1758688527744,1.31172435,112170.0,112160.0,0.04372]
[1758688528146,0.46072435,112170.0,112160.0,0.001]
[1758688528347,1.31172435,112170.0,112160.0,0.001]
[1758688529446,1.31172435,112170.0,112160.0,0.01687]
[1758688529648,1.31172435,112170.0,112160.0,0.001]
[1758688529649,1.67252435,112170.0,112160.0,0.001]
[1758688529850,0.82152435,112170.0,112160.0,0.001]
[1758688530053,1.31172435,112170.0,112160.0,0.001]
[1758688530249,1.31172435,112170.0,112160.0,0.01687]
[1758688530455,1.31172435,112170.0,112160.0,0.04372]
[1758688530656,1.31132435,112170.0,112160.0,0.04372]
[1758688530859,0.46072435,112170.0,112160.0,0.40452]
[1758688531047,1.31124435,112170.0,112160.0,0.04372]
[1758688531253,1.67244435,112170.0,112160.0,0.001]
[1758688532057,0.46072435,112170.0,112160.0,0.40452]
[1758688532257,1.31160435,112170.0,112160.0,0.40452]
[1758688532666,1.31120435,112170.0,112160.0,0.40452]
[1758688532862,1.31160435,112170.0,112160.0,0.40452]
[1758688537761,1.31136435,112170.0,112160.0,0.40452]
[1758688538167,1.31096435,112170.0,112160.0,0.40452]
[1758688538361,1.31136435,112170.0,112160.0,0.40452]
[1758688538564,0.20884892,112170.0,112160.0,0.80452]